[Event "*** Titled Tuesday Blitz"]
[Site "Chess.com"]
[Date "2021.02.16"]
[Round "4"]
[White "KruHor"]
[Black "sergiochess83"]
[Result "0-1"]
[WhiteElo "2539"]
[BlackElo "2840"]
[TimeControl "180+1"]
[EndTime "10:40:37 PST"]
[Termination "sergiochess83 won by resignation"]

1. e4 {[%clk 0:02:57.9]} 1... c5 {[%clk 0:02:57.4]} 2. Nf3 {[%clk 0:02:57]} 2...
d6 {[%clk 0:02:52.3]} 3. Bc4 {[%clk 0:02:55.1]} 3... e6 {[%clk 0:02:50.1]} 4.
O-O {[%clk 0:02:54]} 4... Nf6 {[%clk 0:02:49.3]} 5. Re1 {[%clk 0:02:51.4]} 5...
Be7 {[%clk 0:02:47.9]} 6. c3 {[%clk 0:02:46.6]} 6... O-O {[%clk 0:02:46]} 7. Bf1
{[%clk 0:02:43.8]} 7... b6 {[%clk 0:02:25.2]} 8. d4 {[%clk 0:02:40.8]} 8... Bb7
{[%clk 0:02:25.4]} 9. Nbd2 {[%clk 0:02:20.3]} 9... Nbd7 {[%clk 0:02:25]} 10. b3
{[%clk 0:02:17.8]} 10... Rc8 {[%clk 0:02:15.9]} 11. Bb2 {[%clk 0:02:17.1]} 11...
Rc7 {[%clk 0:02:15.9]} 12. h3 {[%clk 0:02:13]} 12... cxd4 {[%clk 0:02:12.7]} 13.
cxd4 {[%clk 0:02:12.3]} 13... Qa8 {[%clk 0:02:12.8]} 14. Bd3 {[%clk 0:02:02.8]}
14... Rfc8 {[%clk 0:02:09]} 15. Qe2 {[%clk 0:01:59.5]} 15... Nf8 {[%clk
0:02:03.5]} 16. a4 {[%clk 0:01:50.6]} 16... Ng6 {[%clk 0:02:00.5]} 17. Qe3
{[%clk 0:01:47]} 17... a5 {[%clk 0:01:38.3]} 18. Nh2 {[%clk 0:01:44]} 18... Ba6
{[%clk 0:01:36.7]} 19. Bxa6 {[%clk 0:01:37.5]} 19... Qxa6 {[%clk 0:01:36.3]} 20.
Nhf3 {[%clk 0:01:33.3]} 20... Rc2 {[%clk 0:01:30.4]} 21. Rab1 {[%clk 0:01:32.7]}
21... d5 {[%clk 0:01:28.9]} 22. e5 {[%clk 0:01:23.8]} 22... Nd7 {[%clk
0:01:28.1]} 23. Red1 {[%clk 0:01:22.8]} 23... h6 {[%clk 0:01:14.5]} 24. g3
{[%clk 0:01:22.2]} 24... Bb4 {[%clk 0:01:05]} 25. Ne1 {[%clk 0:01:20.7]} 25...
Rxb2 {[%clk 0:00:54.2]} 26. Rxb2 {[%clk 0:01:14.9]} 26... Rc3 {[%clk 0:00:54.1]}
27. Nd3 {[%clk 0:01:11.2]} 27... Rxd3 {[%clk 0:00:50.3]} 28. Qe1 {[%clk
0:01:10.6]} 28... Rxd4 {[%clk 0:00:49.1]} 29. Qf1 {[%clk 0:01:06.1]} 29... Qxf1+
{[%clk 0:00:45.1]} 30. Kxf1 {[%clk 0:01:06]} 30... Ngxe5 {[%clk 0:00:44.8]} 31.
Ke2 {[%clk 0:01:05.9]} 31... Nc5 {[%clk 0:00:37.9]} 32. Rc2 {[%clk 0:01:03.1]}
32... g5 {[%clk 0:00:36.4]} 33. Rdc1 {[%clk 0:01:01.3]} 33... Rxd2+ {[%clk
0:00:33.4]} 0-1

[Event "*** Titled Tuesday Blitz"]
[Site "Chess.com"]
[Date "2021.02.16"]
[Round "4"]
[White "mikolka1985"]
[Black "NewBornNow"]
[Result "1-0"]
[WhiteElo "2618"]
[BlackElo "2767"]
[TimeControl "180+1"]
[EndTime "10:40:38 PST"]
[Termination "mikolka1985 won by resignation"]

1. d4 {[%clk 0:02:58.1]} 1... Nf6 {[%clk 0:02:58.8]} 2. c4 {[%clk 0:02:57.4]}
2... g6 {[%clk 0:02:57.4]} 3. Nc3 {[%clk 0:02:55.6]} 3... Bg7 {[%clk 0:02:57.6]}
4. e4 {[%clk 0:02:55.3]} 4... d6 {[%clk 0:02:57.9]} 5. Nf3 {[%clk 0:02:38.9]}
5... O-O {[%clk 0:02:55.8]} 6. h3 {[%clk 0:02:39.1]} 6... e5 {[%clk 0:02:53.8]}
7. d5 {[%clk 0:02:38.9]} 7... Nbd7 {[%clk 0:02:52.5]} 8. Be3 {[%clk 0:02:33.7]}
8... Nc5 {[%clk 0:02:49]} 9. Nd2 {[%clk 0:02:32.9]} 9... a5 {[%clk 0:02:49.1]}
10. g4 {[%clk 0:02:31.1]} 10... Ne8 {[%clk 0:02:47.7]} 11. h4 {[%clk 0:02:28]}
11... f5 {[%clk 0:02:47.4]} 12. g5 {[%clk 0:02:27.4]} 12... f4 {[%clk
0:02:38.6]} 13. Bxc5 {[%clk 0:02:25.2]} 13... dxc5 {[%clk 0:02:38.5]} 14. Bh3
{[%clk 0:02:25.1]} 14... Nd6 {[%clk 0:02:38.2]} 15. Qf3 {[%clk 0:02:21.6]} 15...
h6 {[%clk 0:02:37.5]} 16. gxh6 {[%clk 0:02:17]} 16... Bxh6 {[%clk 0:02:37]} 17.
O-O-O {[%clk 0:02:15.7]} 17... Kh7 {[%clk 0:02:36.7]} 18. Rdg1 {[%clk
0:02:13.9]} 18... Qf6 {[%clk 0:02:31.8]} 19. Bxc8 {[%clk 0:02:11.8]} 19... Raxc8
{[%clk 0:02:31.1]} 20. Rg4 {[%clk 0:02:11]} 20... Rg8 {[%clk 0:02:30]} 21. Rhg1
{[%clk 0:02:10.4]} 21... Rg7 {[%clk 0:02:24.2]} 22. Kb1 {[%clk 0:02:02.7]} 22...
Rcg8 {[%clk 0:02:21.6]} 23. Qd3 {[%clk 0:01:26.8]} 23... g5 {[%clk 0:02:17]} 24.
h5 {[%clk 0:01:21.1]} 24... Qf7 {[%clk 0:02:13.5]} 25. Nf3 {[%clk 0:01:20.4]}
25... Qf6 {[%clk 0:02:09.9]} 26. Nh2 {[%clk 0:01:16]} 26... Qf7 {[%clk
0:02:08.4]} 27. Nf3 {[%clk 0:01:15.6]} 27... Qe7 {[%clk 0:02:08.3]} 28. b3
{[%clk 0:01:12.2]} 28... Ne8 {[%clk 0:02:07.5]} 29. Nh2 {[%clk 0:01:06.7]} 29...
Nf6 {[%clk 0:02:06.4]} 30. Qh3 {[%clk 0:01:05]} 30... c6 {[%clk 0:02:04.4]} 31.
f3 {[%clk 0:00:55.9]} 31... cxd5 {[%clk 0:02:02.4]} 32. Nxd5 {[%clk 0:00:47.3]}
32... Nxd5 {[%clk 0:02:01.4]} 33. cxd5 {[%clk 0:00:46.9]} 33... c4 {[%clk
0:02:01.3]} 34. R4g2 {[%clk 0:00:45.6]} 34... cxb3 {[%clk 0:02:00.8]} 35. axb3
{[%clk 0:00:44.8]} 35... Qa3 {[%clk 0:01:55.7]} 36. Rb2 {[%clk 0:00:43.1]} 36...
Rf8 {[%clk 0:01:54.5]} 37. Qe6 {[%clk 0:00:38.1]} 37... Re7 {[%clk 0:01:53.8]}
38. Qg6+ {[%clk 0:00:36.7]} 38... Kh8 {[%clk 0:01:53.5]} 39. Qxh6+ {[%clk
0:00:36.5]} 39... Rh7 {[%clk 0:01:53.6]} 40. Qe6 {[%clk 0:00:34.1]} 40... Rxh5
{[%clk 0:01:51.2]} 41. Ng4 {[%clk 0:00:31.2]} 41... Qc5 {[%clk 0:01:49.4]} 42.
Rc1 {[%clk 0:00:28.6]} 42... Qb5 {[%clk 0:01:48.2]} 43. Qxe5+ {[%clk 0:00:27.8]}
43... Kg8 {[%clk 0:01:47]} 44. Nf6+ {[%clk 0:00:26.7]} 1-0

[Event "*** Titled Tuesday Blitz"]
[Site "Chess.com"]
[Date "2021.02.16"]
[Round "4"]
[White "Ekose"]
[Black "DrVelja"]
[Result "0-1"]
[WhiteElo "2630"]
[BlackElo "2877"]
[TimeControl "180+1"]
[EndTime "10:40:39 PST"]
[Termination "DrVelja won on time"]

1. Nf3 {[%clk 0:02:58]} 1... Nf6 {[%clk 0:02:59.6]} 2. e3 {[%clk 0:02:57.3]}
2... g6 {[%clk 0:03:00]} 3. c4 {[%clk 0:02:42.5]} 3... Bg7 {[%clk 0:03:00.9]} 4.
d4 {[%clk 0:02:42.3]} 4... O-O {[%clk 0:03:01.8]} 5. Nc3 {[%clk 0:02:38.7]} 5...
d6 {[%clk 0:03:02.7]} 6. Be2 {[%clk 0:02:35.5]} 6... b6 {[%clk 0:03:03.6]} 7.
O-O {[%clk 0:02:27.1]} 7... Bb7 {[%clk 0:03:04.5]} 8. b3 {[%clk 0:02:27.2]} 8...
Ne4 {[%clk 0:03:04.7]} 9. Bb2 {[%clk 0:02:26.7]} 9... Nxc3 {[%clk 0:03:04.7]}
10. Bxc3 {[%clk 0:02:27.6]} 10... Nd7 {[%clk 0:03:05.6]} 11. Qc2 {[%clk
0:02:24.2]} 11... Re8 {[%clk 0:03:05.3]} 12. Rad1 {[%clk 0:02:23.8]} 12... e5
{[%clk 0:03:04.5]} 13. dxe5 {[%clk 0:02:06.2]} 13... Nxe5 {[%clk 0:03:05.4]} 14.
Nxe5 {[%clk 0:02:01.4]} 14... Bxe5 {[%clk 0:03:06.3]} 15. Bxe5 {[%clk
0:01:38.3]} 15... Rxe5 {[%clk 0:03:07.2]} 16. Rfe1 {[%clk 0:01:37.3]} 16... Qf6
{[%clk 0:03:02.2]} 17. Bf1 {[%clk 0:01:35.5]} 17... Rae8 {[%clk 0:03:01]} 18.
Qc3 {[%clk 0:01:13.2]} 18... h5 {[%clk 0:02:53.2]} 19. f4 {[%clk 0:01:09.8]}
19... R5e6 {[%clk 0:02:53.8]} 20. Qxf6 {[%clk 0:01:09.8]} 20... Rxf6 {[%clk
0:02:54.7]} 21. Kf2 {[%clk 0:01:08.4]} 21... Rfe6 {[%clk 0:02:46.5]} 22. g3
{[%clk 0:01:06.3]} 22... a5 {[%clk 0:02:45.5]} 23. Rd3 {[%clk 0:01:01.9]} 23...
Kg7 {[%clk 0:02:43.2]} 24. Bg2 {[%clk 0:01:01.2]} 24... Bxg2 {[%clk 0:02:39.9]}
25. Kxg2 {[%clk 0:01:02.1]} 25... f6 {[%clk 0:02:23.4]} 26. Kf3 {[%clk
0:01:02.2]} 26... g5 {[%clk 0:02:22.8]} 27. h3 {[%clk 0:00:56.5]} 27... Re4
{[%clk 0:02:18.1]} 28. Re2 {[%clk 0:00:53.8]} 28... Kg6 {[%clk 0:02:16.2]} 29.
Rd5 {[%clk 0:00:23.3]} 29... R8e7 {[%clk 0:02:10]} 30. f5+ {[%clk 0:00:20]}
30... Kg7 {[%clk 0:02:05.7]} 31. Rd4 {[%clk 0:00:20.5]} 31... g4+ {[%clk
0:01:40.6]} 32. hxg4 {[%clk 0:00:14.9]} 32... hxg4+ {[%clk 0:01:41.5]} 33. Kf2
{[%clk 0:00:15.2]} 33... R7e5 {[%clk 0:01:38.2]} 34. Rd5 {[%clk 0:00:04.4]}
34... Kh6 {[%clk 0:01:31.7]} 0-1

[Event "*** Titled Tuesday Blitz"]
[Site "Chess.com"]
[Date "2021.02.16"]
[Round "4"]
[White "BabyBoss31"]
[Black "HackingKid98"]
[Result "0-1"]
[WhiteElo "2324"]
[BlackElo "2468"]
[TimeControl "180+1"]
[EndTime "10:40:41 PST"]
[Termination "HackingKid98 won by resignation"]

1. d4 {[%clk 0:03:00.9]} 1... d5 {[%clk 0:02:58.8]} 2. Bf4 {[%clk 0:02:59.7]}
2... c5 {[%clk 0:02:57.7]} 3. e4 {[%clk 0:02:53.4]} 3... dxe4 {[%clk 0:02:49.3]}
4. d5 {[%clk 0:02:52.1]} 4... Nf6 {[%clk 0:02:46.4]} 5. Nc3 {[%clk 0:02:49.7]}
5... g6 {[%clk 0:02:44.5]} 6. Qd2 {[%clk 0:02:47.9]} 6... Bg7 {[%clk 0:02:44]}
7. O-O-O {[%clk 0:02:43.1]} 7... O-O {[%clk 0:02:43.1]} 8. Nge2 {[%clk
0:02:16.5]} 8... a6 {[%clk 0:02:28.3]} 9. Ng3 {[%clk 0:02:11.6]} 9... b5 {[%clk
0:02:26.4]} 10. h4 {[%clk 0:01:41.5]} 10... Bg4 {[%clk 0:02:23]} 11. Be2 {[%clk
0:01:38.4]} 11... Bxe2 {[%clk 0:02:21.5]} 12. Qxe2 {[%clk 0:01:37]} 12... Qa5
{[%clk 0:02:15.7]} 13. Kb1 {[%clk 0:01:15.3]} 13... Nbd7 {[%clk 0:02:11.7]} 14.
h5 {[%clk 0:00:49.1]} 14... Nb6 {[%clk 0:02:06.5]} 15. hxg6 {[%clk 0:00:42.9]}
15... hxg6 {[%clk 0:02:03.1]} 16. Ngxe4 {[%clk 0:00:38.9]} 16... Nc4 {[%clk
0:01:51.9]} 17. Bc1 {[%clk 0:00:17.1]} 17... b4 {[%clk 0:01:42.4]} 18. Qxc4
{[%clk 0:00:16]} 18... bxc3 {[%clk 0:01:40.7]} 19. Nxc3 {[%clk 0:00:16.4]} 19...
Rab8 {[%clk 0:01:36.5]} 20. Rh4 {[%clk 0:00:16.4]} 20... Rb4 {[%clk 0:01:35.1]}
21. Rdh1 {[%clk 0:00:09.2]} 21... Rxc4 {[%clk 0:01:32.5]} 22. Rxc4 {[%clk
0:00:10.1]} 22... Rb8 {[%clk 0:01:31.6]} 23. Ka1 {[%clk 0:00:09.7]} 23... Rb4
{[%clk 0:01:31]} 24. Rch4 {[%clk 0:00:06.8]} 24... Rxh4 {[%clk 0:01:29.7]} 25.
Rxh4 {[%clk 0:00:07.7]} 25... Qd8 {[%clk 0:01:27.2]} 26. Ra4 {[%clk 0:00:02.5]}
26... Nxd5 {[%clk 0:01:27]} 27. Ne4 {[%clk 0:00:03.3]} 27... Nb4 {[%clk
0:01:26]} 28. Nxc5 {[%clk 0:00:03.1]} 28... Nxc2+ {[%clk 0:01:24.6]} 29. Kb1
{[%clk 0:00:03.8]} 29... Qd1 {[%clk 0:01:25]} 30. Rc4 {[%clk 0:00:03.3]} 30...
Nd4 {[%clk 0:01:20.6]} 31. Ne4 {[%clk 0:00:02.5]} 0-1

[Event "*** Titled Tuesday Blitz"]
[Site "Chess.com"]
[Date "2021.02.16"]
[Round "4"]
[White "djano"]
[Black "GregShahade"]
[Result "0-1"]
[WhiteElo "2474"]
[BlackElo "2658"]
[TimeControl "180+1"]
[EndTime "10:40:47 PST"]
[Termination "GregShahade won by resignation"]

1. e4 {[%clk 0:03:00.9]} 1... e5 {[%clk 0:03:00.1]} 2. Nf3 {[%clk 0:03:00.6]}
2... Nc6 {[%clk 0:03:00.4]} 3. d4 {[%clk 0:03:00.4]} 3... exd4 {[%clk
0:03:00.2]} 4. Nxd4 {[%clk 0:03:01.3]} 4... Nf6 {[%clk 0:03:00.3]} 5. Nxc6
{[%clk 0:03:01.1]} 5... bxc6 {[%clk 0:03:01.2]} 6. e5 {[%clk 0:03:01.5]} 6...
Qe7 {[%clk 0:03:01.7]} 7. Qe2 {[%clk 0:03:00.1]} 7... Nd5 {[%clk 0:03:02]} 8. h4
{[%clk 0:03:00.6]} 8... Qe6 {[%clk 0:03:01.8]} 9. c4 {[%clk 0:02:58.7]} 9... Nb6
{[%clk 0:02:58]} 10. b3 {[%clk 0:02:26.2]} 10... a5 {[%clk 0:02:56.3]} 11. Nd2
{[%clk 0:02:22.1]} 11... a4 {[%clk 0:02:56.2]} 12. Bb2 {[%clk 0:02:16.7]} 12...
axb3 {[%clk 0:02:55.4]} 13. axb3 {[%clk 0:02:16.7]} 13... Rxa1+ {[%clk
0:02:56.2]} 14. Bxa1 {[%clk 0:02:17.6]} 14... Bb4 {[%clk 0:02:53.9]} 15. g3
{[%clk 0:02:11.6]} 15... O-O {[%clk 0:02:49.6]} 16. Bh3 {[%clk 0:02:10.4]} 16...
Qh6 {[%clk 0:02:45.2]} 17. f4 {[%clk 0:02:03.6]} 17... Qg6 {[%clk 0:02:36.1]}
18. Kf2 {[%clk 0:01:50.1]} 18... Qc2 {[%clk 0:02:06.3]} 19. Ne4 {[%clk
0:01:28.8]} 19... Qxb3 {[%clk 0:02:00.1]} 20. Bf5 {[%clk 0:00:51.7]} 20... d5
{[%clk 0:01:48.3]} 21. Bxh7+ {[%clk 0:00:35.3]} 21... Kxh7 {[%clk 0:01:45.4]}
22. Qh5+ {[%clk 0:00:35.4]} 22... Kg8 {[%clk 0:01:45.7]} 23. Nf6+ {[%clk
0:00:27.9]} 23... gxf6 {[%clk 0:01:41.2]} 24. exf6 {[%clk 0:00:28.8]} 24... Qc2+
{[%clk 0:01:32.3]} 25. Kf1 {[%clk 0:00:29]} 25... Nxc4 {[%clk 0:01:15.6]} 26.
Qg5+ {[%clk 0:00:19.4]} 26... Qg6 {[%clk 0:01:15.1]} 27. f5 {[%clk 0:00:19.1]}
27... Bxf5 {[%clk 0:01:10.6]} 28. g4 {[%clk 0:00:16.7]} 28... Bd3+ {[%clk
0:01:07.3]} 29. Kf2 {[%clk 0:00:15.9]} 29... Bc5+ {[%clk 0:01:07]} 30. Kg3
{[%clk 0:00:14.9]} 30... Re8 {[%clk 0:01:05]} 0-1

[Event "*** Titled Tuesday Blitz"]
[Site "Chess.com"]
[Date "2021.02.16"]
[Round "4"]
[White "Taran2004"]
[Black "SophieNikoladze"]
[Result "1/2-1/2"]
[WhiteElo "2408"]
[BlackElo "2193"]
[TimeControl "180+1"]
[EndTime "10:40:47 PST"]
[Termination "Game drawn by agreement"]

1. e4 {[%clk 0:03:00.9]} 1... d6 {[%clk 0:02:59]} 2. d4 {[%clk 0:02:56.6]} 2...
Nf6 {[%clk 0:02:59]} 3. Nc3 {[%clk 0:02:53.1]} 3... e5 {[%clk 0:02:59.2]} 4. Nf3
{[%clk 0:02:52]} 4... exd4 {[%clk 0:02:59]} 5. Nxd4 {[%clk 0:02:51.9]} 5... Be7
{[%clk 0:02:59.6]} 6. Bc4 {[%clk 0:02:51.1]} 6... O-O {[%clk 0:02:59.4]} 7. O-O
{[%clk 0:02:51.3]} 7... a6 {[%clk 0:02:59.7]} 8. f3 {[%clk 0:02:50.6]} 8... b5
{[%clk 0:02:59.4]} 9. Bb3 {[%clk 0:02:50.6]} 9... c5 {[%clk 0:02:59.4]} 10.
Ndxb5 {[%clk 0:02:41.3]} 10... axb5 {[%clk 0:02:58.6]} 11. Nxb5 {[%clk
0:02:41.3]} 11... Qb6 {[%clk 0:02:58.8]} 12. c4 {[%clk 0:02:40.1]} 12... Rd8
{[%clk 0:02:39.7]} 13. a4 {[%clk 0:02:36.4]} 13... Nc6 {[%clk 0:02:38.3]} 14.
Bd2 {[%clk 0:02:35.8]} 14... Na7 {[%clk 0:02:37.4]} 15. a5 {[%clk 0:02:34.1]}
15... Qb7 {[%clk 0:02:31.1]} 16. a6 {[%clk 0:02:33.8]} 16... Qb8 {[%clk
0:02:27.8]} 17. Ba5 {[%clk 0:02:32.2]} 17... Nxb5 {[%clk 0:02:26.9]} 18. Bxd8
{[%clk 0:02:29.8]} 18... Bxd8 {[%clk 0:02:23.4]} 19. cxb5 {[%clk 0:02:27.2]}
19... Qxb5 {[%clk 0:02:21.6]} 20. Bd5 {[%clk 0:02:16.3]} 20... Nxd5 {[%clk
0:02:16.4]} 21. Qxd5 {[%clk 0:02:17.2]} 21... Rxa6 {[%clk 0:02:15.7]} 22. Rxa6
{[%clk 0:02:10.6]} 22... Bxa6 {[%clk 0:01:58.3]} 23. Rd1 {[%clk 0:02:09]} 23...
c4 {[%clk 0:01:41.9]} 24. Qxb5 {[%clk 0:02:00.9]} 24... Bxb5 {[%clk 0:01:41.6]}
25. Rxd6 {[%clk 0:02:01.5]} 25... Bf6 {[%clk 0:01:40.8]} 26. e5 {[%clk
0:01:52.6]} 26... Be7 {[%clk 0:01:40]} 27. Rd5 {[%clk 0:01:44.6]} 27... Bc6
{[%clk 0:01:38.4]} 28. Ra5 {[%clk 0:01:43.3]} 28... g6 {[%clk 0:01:38.2]} 29.
Kf2 {[%clk 0:01:42.8]} 29... Bb4 {[%clk 0:01:34.4]} 30. Ra6 {[%clk 0:01:40.4]}
30... Bd5 {[%clk 0:01:31.5]} 31. Ke3 {[%clk 0:01:37.9]} 31... Be1 {[%clk
0:01:30]} 32. Kd4 {[%clk 0:01:30.5]} 32... Be6 {[%clk 0:01:30.2]} 33. Kc5 {[%clk
0:01:29.5]} 33... Bf2+ {[%clk 0:01:28.4]} 34. Kd6 {[%clk 0:01:29.2]} 34... Bd4
{[%clk 0:01:27.9]} 35. Ra8+ {[%clk 0:01:28.6]} 35... Kg7 {[%clk 0:01:27.3]} 36.
Rb8 {[%clk 0:01:27.9]} 36... h5 {[%clk 0:01:21.6]} 37. h3 {[%clk 0:01:23]} 37...
Be3 {[%clk 0:01:19.8]} 38. g4 {[%clk 0:01:22.9]} 38... hxg4 {[%clk 0:01:17.4]}
39. hxg4 {[%clk 0:01:23.8]} 39... g5 {[%clk 0:01:15.9]} 40. Rb7 {[%clk
0:01:18.7]} 40... Bd4 {[%clk 0:01:15.5]} 41. Rb8 {[%clk 0:01:16.8]} 41... Be3
{[%clk 0:01:14.6]} 42. Rb7 {[%clk 0:01:16.7]} 42... Bf4 {[%clk 0:01:14.2]} 43.
Rc7 {[%clk 0:01:11.9]} 43... Bc1 {[%clk 0:01:13.4]} 44. Rb7 {[%clk 0:01:11.7]}
44... Bd2 {[%clk 0:01:13.1]} 45. Rb8 {[%clk 0:01:01.4]} 45... Bc1 {[%clk
0:01:12.1]} 46. Rb7 {[%clk 0:01:01]} 46... Bf4 {[%clk 0:01:10.9]} 47. Rc7 {[%clk
0:01:00.6]} 47... Kg6 {[%clk 0:01:10.8]} 48. Rb7 {[%clk 0:00:55.7]} 48... Be3
{[%clk 0:01:08.7]} 1/2-1/2

[Event "*** Titled Tuesday Blitz"]
[Site "Chess.com"]
[Date "2021.02.16"]
[Round "4"]
[White "NikolaMa2000"]
[Black "MusicCityMaster"]
[Result "0-1"]
[WhiteElo "1919"]
[BlackElo "2382"]
[TimeControl "180+1"]
[EndTime "10:40:50 PST"]
[Termination "MusicCityMaster won on time"]

1. d4 {[%clk 0:03:00.9]} 1... Nf6 {[%clk 0:02:59.3]} 2. c4 {[%clk 0:03:01.2]}
2... c5 {[%clk 0:02:59.6]} 3. d5 {[%clk 0:03:00.4]} 3... b5 {[%clk 0:03:00.2]}
4. cxb5 {[%clk 0:02:59.3]} 4... a6 {[%clk 0:03:00.8]} 5. e3 {[%clk 0:02:55]}
5... axb5 {[%clk 0:02:59.8]} 6. Bxb5 {[%clk 0:02:54.3]} 6... Qa5+ {[%clk
0:03:00.5]} 7. Nc3 {[%clk 0:02:52.4]} 7... Bb7 {[%clk 0:03:01.2]} 8. Bc4 {[%clk
0:02:37.9]} 8... e6 {[%clk 0:03:00]} 9. Kf1 {[%clk 0:01:39.8]} 9... Qb4 {[%clk
0:02:07.2]} 10. Qd3 {[%clk 0:01:21.5]} 10... d6 {[%clk 0:01:37.7]} 11. a3 {[%clk
0:01:15.9]} 11... Qb6 {[%clk 0:01:27.3]} 12. dxe6 {[%clk 0:01:05.1]} 12... fxe6
{[%clk 0:01:24.1]} 13. Bxe6 {[%clk 0:01:01.6]} 13... Qc6 {[%clk 0:01:20.4]} 14.
Nf3 {[%clk 0:00:49.6]} 14... d5 {[%clk 0:01:20.6]} 15. Qf5 {[%clk 0:00:31.2]}
15... Be7 {[%clk 0:01:13.8]} 16. Ne5 {[%clk 0:00:27.1]} 16... Qa6+ {[%clk
0:01:13.5]} 17. Kg1 {[%clk 0:00:20.4]} 17... Rf8 {[%clk 0:01:12]} 18. Qh3 {[%clk
0:00:18.2]} 18... d4 {[%clk 0:01:01.3]} 19. exd4 {[%clk 0:00:17.8]} 19... cxd4
{[%clk 0:01:01.7]} 20. Nd1 {[%clk 0:00:06.9]} 20... Qe2 {[%clk 0:01:01]} 21. Bd2
{[%clk 0:00:01.3]} 21... Qxe5 {[%clk 0:00:53.1]} 0-1

[Event "*** Titled Tuesday Blitz"]
[Site "Chess.com"]
[Date "2021.02.16"]
[Round "4"]
[White "Elprofessor21"]
[Black "Markov_Mikhail"]
[Result "0-1"]
[WhiteElo "2481"]
[BlackElo "2692"]
[TimeControl "180+1"]
[EndTime "10:40:55 PST"]
[Termination "Markov_Mikhail won on time"]

1. d4 {[%clk 0:03:00.9]} 1... Nf6 {[%clk 0:03:00.1]} 2. Nf3 {[%clk 0:03:01]}
2... e6 {[%clk 0:03:00.6]} 3. c4 {[%clk 0:03:01]} 3... d5 {[%clk 0:03:01.2]} 4.
Nc3 {[%clk 0:03:01.3]} 4... Be7 {[%clk 0:03:01.5]} 5. Bf4 {[%clk 0:03:01.4]}
5... O-O {[%clk 0:03:02]} 6. e3 {[%clk 0:03:00.4]} 6... Nbd7 {[%clk 0:03:02.7]}
7. cxd5 {[%clk 0:02:57.2]} 7... exd5 {[%clk 0:03:01.8]} 8. Bd3 {[%clk
0:02:57.4]} 8... c5 {[%clk 0:02:55.8]} 9. O-O {[%clk 0:02:54.4]} 9... a6 {[%clk
0:02:56.3]} 10. dxc5 {[%clk 0:02:53.9]} 10... Nxc5 {[%clk 0:02:57.2]} 11. Bc2
{[%clk 0:02:51.5]} 11... b5 {[%clk 0:02:57.7]} 12. h3 {[%clk 0:02:49.2]} 12...
Bb7 {[%clk 0:02:57.8]} 13. Rc1 {[%clk 0:02:45.6]} 13... Re8 {[%clk 0:02:56.5]}
14. Nd4 {[%clk 0:02:44.4]} 14... Bf8 {[%clk 0:02:55.3]} 15. Nce2 {[%clk
0:02:32.6]} 15... Nfe4 {[%clk 0:02:48.3]} 16. Bb1 {[%clk 0:02:04.3]} 16... Rc8
{[%clk 0:02:47.5]} 17. Bh2 {[%clk 0:01:59.6]} 17... Qf6 {[%clk 0:02:45.4]} 18.
Nf4 {[%clk 0:01:53.4]} 18... Bd6 {[%clk 0:02:39.7]} 19. Nde2 {[%clk 0:01:49.9]}
19... Qxb2 {[%clk 0:02:35.3]} 20. Rc2 {[%clk 0:01:35.7]} 20... Qe5 {[%clk
0:02:29.1]} 21. Nd4 {[%clk 0:01:29.6]} 21... Qf6 {[%clk 0:02:24.1]} 22. Nf3
{[%clk 0:01:27.3]} 22... Nc3 {[%clk 0:02:20.7]} 23. Rxc3 {[%clk 0:01:10.8]}
23... Qxc3 {[%clk 0:02:19.5]} 24. Bxh7+ {[%clk 0:01:11.7]} 24... Kxh7 {[%clk
0:01:49.3]} 25. Ng5+ {[%clk 0:01:07.8]} 25... Kg8 {[%clk 0:01:49.8]} 26. Qh5
{[%clk 0:01:02.5]} 26... Qf6 {[%clk 0:01:49.8]} 27. Qh7+ {[%clk 0:00:57.5]}
27... Kf8 {[%clk 0:01:50.1]} 28. Qh5 {[%clk 0:00:22.4]} 28... Ke7 {[%clk
0:01:35.5]} 29. Nh7 {[%clk 0:00:04.8]} 29... Qb2 {[%clk 0:01:35.1]} 30. Qg5+
{[%clk 0:00:03.5]} 30... Kd7 {[%clk 0:01:33.2]} 31. Qg4+ {[%clk 0:00:03.7]}
31... Kc7 {[%clk 0:01:27.8]} 32. Qg3 {[%clk 0:00:04.2]} 32... Kb8 {[%clk
0:01:26.7]} 33. Ng5 {[%clk 0:00:03.2]} 33... Ne4 {[%clk 0:01:26.3]} 34. Nxe4
{[%clk 0:00:03.4]} 34... dxe4 {[%clk 0:01:27.2]} 35. Rd1 {[%clk 0:00:03.1]}
35... Qe5 {[%clk 0:01:27]} 36. Qg4 {[%clk 0:00:01.6]} 36... g5 {[%clk
0:01:26.1]} 0-1

[Event "*** Titled Tuesday Blitz"]
[Site "Chess.com"]
[Date "2021.02.16"]
[Round "4"]
[White "ILoveMauritania"]
[Black "RaneshRatnesan"]
[Result "0-1"]
[WhiteElo "2363"]
[BlackElo "2203"]
[TimeControl "180+1"]
[EndTime "10:40:56 PST"]
[Termination "RaneshRatnesan won on time"]

1. e4 {[%clk 0:03:00.9]} 1... c5 {[%clk 0:02:56.4]} 2. Nf3 {[%clk 0:02:59.8]}
2... d6 {[%clk 0:02:56.7]} 3. Bb5+ {[%clk 0:02:59.4]} 3... Bd7 {[%clk
0:02:53.1]} 4. Bxd7+ {[%clk 0:02:58.7]} 4... Nxd7 {[%clk 0:02:54]} 5. O-O {[%clk
0:02:59]} 5... Ngf6 {[%clk 0:02:53.9]} 6. Re1 {[%clk 0:02:58.7]} 6... Rc8 {[%clk
0:02:54.4]} 7. c3 {[%clk 0:02:59.2]} 7... e6 {[%clk 0:02:54.1]} 8. d4 {[%clk
0:02:59.1]} 8... cxd4 {[%clk 0:02:55]} 9. cxd4 {[%clk 0:03:00]} 9... Be7 {[%clk
0:02:55.6]} 10. Nc3 {[%clk 0:03:00.4]} 10... O-O {[%clk 0:02:39]} 11. e5 {[%clk
0:02:58.1]} 11... Ne8 {[%clk 0:02:38.2]} 12. Bf4 {[%clk 0:02:56.6]} 12... d5
{[%clk 0:02:35.5]} 13. Qd2 {[%clk 0:02:56.1]} 13... Nb6 {[%clk 0:02:30]} 14. b3
{[%clk 0:02:55.3]} 14... Bb4 {[%clk 0:02:29.7]} 15. Rac1 {[%clk 0:02:52.9]}
15... Nc7 {[%clk 0:02:19.5]} 16. Qd3 {[%clk 0:02:47.6]} 16... Ba3 {[%clk
0:02:10]} 17. Rc2 {[%clk 0:02:45.9]} 17... Na6 {[%clk 0:02:09.9]} 18. Ng5 {[%clk
0:02:34.5]} 18... g6 {[%clk 0:02:04.9]} 19. Qh3 {[%clk 0:02:31.2]} 19... h5
{[%clk 0:01:55.1]} 20. g4 {[%clk 0:02:30.1]} 20... Be7 {[%clk 0:01:39.3]} 21.
Nf3 {[%clk 0:02:09.1]} 21... hxg4 {[%clk 0:01:35.3]} 22. Qxg4 {[%clk 0:02:10]}
22... Kg7 {[%clk 0:01:30.7]} 23. Ng5 {[%clk 0:01:40.5]} 23... Nb4 {[%clk
0:01:26]} 24. Rcc1 {[%clk 0:00:18.7]} 24... Nd3 {[%clk 0:01:24.8]} 25. Re3
{[%clk 0:00:16.2]} 25... Nxf4 {[%clk 0:01:24.4]} 26. Qxf4 {[%clk 0:00:07]} 26...
Bxg5 {[%clk 0:01:23.8]} 27. Qg4 {[%clk 0:00:06.1]} 27... Bxe3 {[%clk 0:01:23.7]}
28. fxe3 {[%clk 0:00:07]} 28... Rh8 {[%clk 0:01:23.3]} 29. Rf1 {[%clk
0:00:05.7]} 29... Qh4 {[%clk 0:01:21.9]} 30. Qe2 {[%clk 0:00:03.6]} 30... Rxc3
{[%clk 0:01:19.7]} 31. Qf2 {[%clk 0:00:02.4]} 31... Qxf2+ {[%clk 0:01:19.1]} 32.
Rxf2 {[%clk 0:00:03.3]} 32... Rxe3 {[%clk 0:01:16.4]} 33. Kg2 {[%clk 0:00:04.2]}
33... Re4 {[%clk 0:01:15.4]} 0-1